{"text_format":"1","workbook":"xlsx","n_sheets":2,"sheets":["словарь","проверка"],"not_rendered":{"charts":1,"images":0,"macros":1,"external_links":0,"defined_names":0,"comments":0,"pivot_tables":0},"unopened":[],"bounds":{"document_bytes":16777216,"sheet_cells":100000,"rows_first":2000,"rows_last":500,"rows_between":2000,"halvings":0,"cell_chars":16384,"cell_head_chars":4096},"cells_cut":0,"cells_raw":0,"read":"whole","date_system":"1900"}

{"sheet":"словарь","index":0,"n_rows":116,"n_cols":5,"rows_kept":116,"cut":false,"hidden":false,"merged":[]}
[]
["goes through for free","проходит бесплатно"]
["competetive","конкурентоспособный"]
["cuisine","кухня"]
["heat up-hot again","подогреть"]
["wholemeal","непросеянная мука"]
["certain","определенный"]
["stew","тушенное мясо"]
["colleague","коллега"]
["currently","в настоящее время"]
["opt for","выбирать"]
["habits","привычки"]
["substitute for","замена для"]
["guilty","виновный"]
["going out","выходить в свет"]
["strict","строгий, требовательный"]
["raw","сырой"]
["wings","крылья"]
["roast","жарить"]
["noun","существительное"]
["adjective","прилагательное"]
["appearance","появление, внешний вид"]
["junk","брахло"]
["scored","забил"]
["partly","частично"]
["race","гонки, раса"]
["cheering","ободряющий, аплодисменты"]
["loudly","громко"]
["crowd","толпа"]
["shouting","крики"]
["cheat","мошенничать"]
["hit","удар"]
["scoring","счет"]
["sword","меч, сабля, шпага",null,"шпа",{"$f":"NOT(ISERROR(MATCH(D34,B34,1)))","v":true}]
["disgrace","позор",null,null,{"$f":"ISNUMBER(LOOKUP(999,SEARCH(D34,B34)))","v":true}]
["injury","травма"]
["hurt","повредить"]
["recover","восстанавливаться"]
["cheated","обманутый"]
["write off","списывать"]
["hesitate","стесняться"]
["sieve","решето"]
["hypocrite","лицемер"]
["visit-stop by","сходить в"]
["lubricate my larynx","смазать горло"]
["stubborn","упрямый"]
["stain","испачкаться"]
["popped out- quick go","быстро сходить"]
["slave","раб"]
["honourable","почетный"]
["follow","следовать"]
["caught","пойманный"]
["fine","штраф"]
["route","маршрут"]
["strictly","строго"]
["ancient","древний"]
["punishe","наказывать"]
["dishonored","опозоренный"]
["event","мероприятие"]
["discus","метание диска"]
["javelin","дротики"]
["chariot racing","гонки на колесницах"]
["fewer","меньше"]
["decide","решил"]
["existence","существование"]
["pagan","языческий"]
["gradually","постепенно"]
["disappearе","исчезать"]
["reveale","раскрываемый"]
["appreciate","оценить"]
["glory","слава"]
["sufficient","достаточный"]
["ancestral","наследственный"]
["stigma","позор"]
["jealous of","ревновать к"]
["spouse","супруг"]
["chores","хлопоты"]
["expenditure","расход"]
["puberty","половая зрелость"]
["benefit","выгода"]
["get on","ладить"]
["hand me downs","подержанная одежда"]
["tought","учил"]
["little by little","понемногу"]
["prohobit","запрещать"]
["uncovered","непокрытый, вскрытый"]
["step-brother","сводный брат"]
["brother-in-law","деверь, золовка"]
["an only child","один ребенок"]
["talkative","болтливый"]
["taciturn, short-spoken","молчаливый, нееразговорчивый"]
["generous","великодушный"]
["greedy","жадный"]
["evil","злой"]
["patient","терпеливый"]
["impatient, eager","нетерпеливый"]
["selfish","эгоистичный"]
["shy","застенчивый"]
["affectionate","любящий"]
["bossy","властный"]
["moody","угрюмый"]
["reliable","надежный"]
["sensible","разумный, здавомыслящий"]
["both","оба"]
["cliffs","скалы"]
["rough","грубый"]
["tight","плотный"]
["sail","паруса"]
["precious","драгоценно"]
["going to carry on","будет продолжать"]
["stuff","материал, ерунда"]
["carry","нести, проводить"]
["intentions","намерения"]
["arrangements","договоренности"]
["an offer, a suggestion","предложение"]
["prediction","прогнозирование"]

{"sheet":"проверка","index":1,"n_rows":25,"n_cols":21,"rows_kept":25,"cut":false,"hidden":false,"merged":[[21,0,21,2]]}
[]
[1,{"$f":"СЛЯЧЕЙКА(словарь!$A$2:INDEX(словарь!A:A,MATCH(LOOKUP(\"яяя\",словарь!$A$2:$A$1000),словарь!$A$2:$A$1000,0)+ROW(словарь!$A$2)-1))","v":"cheated"},null,{"$f":"IF(VLOOKUP(\"*\"&B2&\"*\",словарь!$A$2:$B$1000, 2, FALSE)=C2,1,0)","v":0}]
[2,{"$f":"СЛЯЧЕЙКА(словарь!$A$2:INDEX(словарь!A:A,MATCH(LOOKUP(\"яяя\",словарь!$A$2:$A$1000),словарь!$A$2:$A$1000,0)+ROW(словарь!$A$2)-1))","v":"going out"},null,{"$f":"IF(VLOOKUP(\"*\"&B3&\"*\",словарь!$A$2:$B$1000, 2, FALSE)=C3,1,0)","v":0}]
[3,{"$f":"СЛЯЧЕЙКА(словарь!$A$2:INDEX(словарь!A:A,MATCH(LOOKUP(\"яяя\",словарь!$A$2:$A$1000),словарь!$A$2:$A$1000,0)+ROW(словарь!$A$2)-1))","v":"habits"},null,{"$f":"IF(VLOOKUP(\"*\"&B4&\"*\",словарь!$A$2:$B$1000, 2, FALSE)=C4,1,0)","v":0}]
[4,{"$f":"СЛЯЧЕЙКА(словарь!$A$2:INDEX(словарь!A:A,MATCH(LOOKUP(\"яяя\",словарь!$A$2:$A$1000),словарь!$A$2:$A$1000,0)+ROW(словарь!$A$2)-1))","v":"stuff"},null,{"$f":"IF(VLOOKUP(\"*\"&B5&\"*\",словарь!$A$2:$B$1000, 2, FALSE)=C5,1,0)","v":0},null,null,null,"2018-02-12","2018-02-13","2018-02-14","2018-02-15","2018-02-16","2018-02-17","2018-02-18","2018-02-19","2018-02-20","2018-02-21","2018-02-22","2018-02-23","2018-02-24","2018-02-25"]
[5,{"$f":"СЛЯЧЕЙКА(словарь!$A$2:INDEX(словарь!A:A,MATCH(LOOKUP(\"яяя\",словарь!$A$2:$A$1000),словарь!$A$2:$A$1000,0)+ROW(словарь!$A$2)-1))","v":"decide"},null,{"$f":"IF(VLOOKUP(\"*\"&B6&\"*\",словарь!$A$2:$B$1000, 2, FALSE)=C6,1,0)","v":0},null,null,null,20]
[6,{"$f":"СЛЯЧЕЙКА(словарь!$A$2:INDEX(словарь!A:A,MATCH(LOOKUP(\"яяя\",словарь!$A$2:$A$1000),словарь!$A$2:$A$1000,0)+ROW(словарь!$A$2)-1))","v":"shouting"},null,{"$f":"IF(VLOOKUP(\"*\"&B7&\"*\",словарь!$A$2:$B$1000, 2, FALSE)=C7,1,0)","v":0}]
[7,{"$f":"СЛЯЧЕЙКА(словарь!$A$2:INDEX(словарь!A:A,MATCH(LOOKUP(\"яяя\",словарь!$A$2:$A$1000),словарь!$A$2:$A$1000,0)+ROW(словарь!$A$2)-1))","v":"colleague"},null,{"$f":"IF(VLOOKUP(\"*\"&B8&\"*\",словарь!$A$2:$B$1000, 2, FALSE)=C8,1,0)","v":0}]
[8,{"$f":"СЛЯЧЕЙКА(словарь!$A$2:INDEX(словарь!A:A,MATCH(LOOKUP(\"яяя\",словарь!$A$2:$A$1000),словарь!$A$2:$A$1000,0)+ROW(словарь!$A$2)-1))","v":"follow"},null,{"$f":"IF(VLOOKUP(\"*\"&B9&\"*\",словарь!$A$2:$B$1000, 2, FALSE)=C9,1,0)","v":0}]
[9,{"$f":"СЛЯЧЕЙКА(словарь!$A$2:INDEX(словарь!A:A,MATCH(LOOKUP(\"яяя\",словарь!$A$2:$A$1000),словарь!$A$2:$A$1000,0)+ROW(словарь!$A$2)-1))","v":"adjective"},null,{"$f":"IF(VLOOKUP(\"*\"&B10&\"*\",словарь!$A$2:$B$1000, 2, FALSE)=C10,1,0)","v":0}]
[10,{"$f":"СЛЯЧЕЙКА(словарь!$A$2:INDEX(словарь!A:A,MATCH(LOOKUP(\"яяя\",словарь!$A$2:$A$1000),словарь!$A$2:$A$1000,0)+ROW(словарь!$A$2)-1))","v":"greedy"},null,{"$f":"IF(VLOOKUP(\"*\"&B11&\"*\",словарь!$A$2:$B$1000, 2, FALSE)=C11,1,0)","v":0}]
[11,{"$f":"СЛЯЧЕЙКА(словарь!$A$2:INDEX(словарь!A:A,MATCH(LOOKUP(\"яяя\",словарь!$A$2:$A$1000),словарь!$A$2:$A$1000,0)+ROW(словарь!$A$2)-1))","v":"appearance"},null,{"$f":"IF(VLOOKUP(\"*\"&B12&\"*\",словарь!$A$2:$B$1000, 2, FALSE)=C12,1,0)","v":0}]
[12,{"$f":"СЛЯЧЕЙКА(словарь!$A$2:INDEX(словарь!A:A,MATCH(LOOKUP(\"яяя\",словарь!$A$2:$A$1000),словарь!$A$2:$A$1000,0)+ROW(словарь!$A$2)-1))","v":"taciturn, short-spoken"},null,{"$f":"IF(VLOOKUP(\"*\"&B13&\"*\",словарь!$A$2:$B$1000, 2, FALSE)=C13,1,0)","v":0}]
[13,{"$f":"СЛЯЧЕЙКА(словарь!$A$2:INDEX(словарь!A:A,MATCH(LOOKUP(\"яяя\",словарь!$A$2:$A$1000),словарь!$A$2:$A$1000,0)+ROW(словарь!$A$2)-1))","v":"race"},null,{"$f":"IF(VLOOKUP(\"*\"&B14&\"*\",словарь!$A$2:$B$1000, 2, FALSE)=C14,1,0)","v":0}]
[14,{"$f":"СЛЯЧЕЙКА(словарь!$A$2:INDEX(словарь!A:A,MATCH(LOOKUP(\"яяя\",словарь!$A$2:$A$1000),словарь!$A$2:$A$1000,0)+ROW(словарь!$A$2)-1))","v":"recover"},null,{"$f":"IF(VLOOKUP(\"*\"&B15&\"*\",словарь!$A$2:$B$1000, 2, FALSE)=C15,1,0)","v":0}]
[15,{"$f":"СЛЯЧЕЙКА(словарь!$A$2:INDEX(словарь!A:A,MATCH(LOOKUP(\"яяя\",словарь!$A$2:$A$1000),словарь!$A$2:$A$1000,0)+ROW(словарь!$A$2)-1))","v":"carry"},null,{"$f":"IF(VLOOKUP(\"*\"&B16&\"*\",словарь!$A$2:$B$1000, 2, FALSE)=C16,1,0)","v":0}]
[16,{"$f":"СЛЯЧЕЙКА(словарь!$A$2:INDEX(словарь!A:A,MATCH(LOOKUP(\"яяя\",словарь!$A$2:$A$1000),словарь!$A$2:$A$1000,0)+ROW(словарь!$A$2)-1))","v":"roast"},null,{"$f":"IF(VLOOKUP(\"*\"&B17&\"*\",словарь!$A$2:$B$1000, 2, FALSE)=C17,1,0)","v":0}]
[17,{"$f":"СЛЯЧЕЙКА(словарь!$A$2:INDEX(словарь!A:A,MATCH(LOOKUP(\"яяя\",словарь!$A$2:$A$1000),словарь!$A$2:$A$1000,0)+ROW(словарь!$A$2)-1))","v":"impatient, eager"},null,{"$f":"IF(VLOOKUP(\"*\"&B18&\"*\",словарь!$A$2:$B$1000, 2, FALSE)=C18,1,0)","v":0}]
[18,{"$f":"СЛЯЧЕЙКА(словарь!$A$2:INDEX(словарь!A:A,MATCH(LOOKUP(\"яяя\",словарь!$A$2:$A$1000),словарь!$A$2:$A$1000,0)+ROW(словарь!$A$2)-1))","v":"prohobit"},null,{"$f":"IF(VLOOKUP(\"*\"&B19&\"*\",словарь!$A$2:$B$1000, 2, FALSE)=C19,1,0)","v":0}]
[19,{"$f":"СЛЯЧЕЙКА(словарь!$A$2:INDEX(словарь!A:A,MATCH(LOOKUP(\"яяя\",словарь!$A$2:$A$1000),словарь!$A$2:$A$1000,0)+ROW(словарь!$A$2)-1))","v":"noun"},null,{"$f":"IF(VLOOKUP(\"*\"&B20&\"*\",словарь!$A$2:$B$1000, 2, FALSE)=C20,1,0)","v":0}]
[20,{"$f":"СЛЯЧЕЙКА(словарь!$A$2:INDEX(словарь!A:A,MATCH(LOOKUP(\"яяя\",словарь!$A$2:$A$1000),словарь!$A$2:$A$1000,0)+ROW(словарь!$A$2)-1))","v":"puberty"},null,{"$f":"IF(VLOOKUP(\"*\"&B21&\"*\",словарь!$A$2:$B$1000, 2, FALSE)=C21,1,0)","v":0}]
["ИТОГО:",null,null,{"$f":"SUM(D2:D21)","v":0}]
[]
[]
[null,"sword","шпага",{"$f":"IF(NOT(ISERROR(MATCH(C25,B25,1))),1,0)","v":1}]